Cogmind - Beta 15 @@@ ROGUE MODE // 2025.08.21 @ 17:55:43 Player: LameThyst Result: Destroyed by G-34 Mercenary with Small Laser Performance ------------- Evolutions (1) 500 Regions Visited (3) 600 Robots Destroyed (53) 265 Value Destroyed (832) 832 Prototype IDs (0) 0 Alien Tech Used (0) 0 Bonus (0) 0 TOTAL SCORE: 2197 Bonus ------- None Cogmind --------- Core Integrity 0/400 Matter 269/300 Energy 96/100 System Corruption 7% Temperature Cool (8) Movement Treading (240) Ox1 Location -9/Materials Parts ------- > --- POWER (1) -------- (None) > --- PROPULSION (2) --- Improved Treads Improved Treads > --- UTILITY (3) ------ Huge Storage Unit > --- WEAPON (3) ------- Maul > --- INVENTORY (25) --- Light Treads Heat Sink Improved Heat Sink Medium Battery (150) High-capacity Matter Pod (137) Sensor Array Light Armor Plating Hacking Suite Trap Extractor (0/4) Beam Rifle Beam Cannon Light Assault Rifle Datajack Plasma Cutter Peak State ------------ > --- POWER ------------ Ion Engine > --- PROPULSION ------- Improved Treads Improved Treads > --- UTILITY ---------- Huge Storage Unit Structural Scanner Seismic Detector > --- WEAPON ----------- Light Assault Rifle Light Cannon Maul > --- INVENTORY -------- Heat Sink Improved Heat Sink Medium Battery High-capacity Matter Pod Sensor Array Light Armor Plating Light Armor Plating Hacking Suite Trap Extractor Beam Rifle Beam Cannon Light Assault Rifle Datajack Plasma Cutter [Rating: 14] Favorites ----------- Power Ion Engine Engine Ion Engine Propulsion Wheel Treads Improved Treads Wheel Wheel Utility Huge Storage Unit Device Seismic Detector Storage Huge Storage Unit Protection Light Armor Plating Weapon Light Assault Rifle Energy Gun EM Pulse Gun Energy Cannon Beam Cannon Ballistic Gun Light Assault Rifle Ballistic Cannon Light Cannon Launcher Grenade Launcher Special Weapon Mining Laser Impact Weapon Maul Build | -11 -10 -10 -9 ------- Run | Yrd Mat Min Mat Slots Evolved 2 | . . . 2 Power . | . . . . Propulsion . | . . . . Utility 1 | . . . 1 Weapon 1 | . . . 1 Parts Attached 33 | 8 12 . 13 Power 4 | 2 1 . 1 Engine 4 | 2 1 . 1 Core . | . . . . Reactor . | . . . . Propulsion 7 | 2 3 . 2 Treads 5 | 1 2 . 2 Leg . | . . . . Wheel 2 | 1 1 . . Hover . | . . . . Flight . | . . . . Utility 8 | 2 3 . 3 Device 4 | 1 1 . 2 Storage 2 | 1 1 . . Processor . | . . . . Hackware . | . . . . Protection 2 | . 1 . 1 Artifact . | . . . . Weapon 14 | 2 5 . 7 Energy Gun 3 | 1 1 . 1 Energy Cannon 2 | . 2 . . Ballistic Gun 3 | 1 1 . 1 Ballistic Cannon 1 | . . . 1 Launcher 3 | . 1 . 2 Special Weapon 1 | . . . 1 Impact Weapon 1 | . . . 1 Slashing Weapon . | . . . . Piercing Weapon . | . . . . Special Melee Weapon . | . . . . Unidentified Prototypes . | . . . . Parts Lost 18 | . 3 . 15 Power 3 | . 1 . 2 Propulsion 3 | . 1 . 2 Utility 5 | . . . 5 Weapon 7 | . 1 . 6 Highest Loss Streak 6 | . 2 . 6 To Critical Strikes . | . . . . Average Backups 14 | 3 14 18 15 Power 1 | . 1 1 . Propulsion 2 | 1 2 2 1 Utility 7 | . 6 9 8 Weapon 3 | . 3 5 3 Tool/Special . | . . . . Unused Backups 13 | . 2 . 11 Power . | . . . . Propulsion 2 | . 1 . 1 Utility 8 | . 1 . 7 Weapon 1 | . . . 1 Tool/Special 2 | . . . 2 Average Slot Usage (%) 97 | . 99 100 94 Engine 11 | . 13 14 7 Treads 14 | . 14 14 14 Wheel 10 | . 13 14 6 Device 16 | . 14 14 20 Storage 12 | . 14 14 11 Energy Gun 10 | . 13 14 5 Energy Cannon 4 | . 8 . . Ballistic Gun 10 | . 5 14 15 Ballistic Cannon 1 | . . . 4 Impact Weapon 2 | . . . 5 Peak Build Rating 14 | 7 10 10 14 Average Rating 9 | 5 8 10 12 On Entrance 6 | . 7 10 10 Naked Turns . | . . . . Heaviest Build 95 | 14 91 89 95 Greatest Support 46 | 10 10 10 46 Greatest Overweight (x) 30 | 1 28 8 30 Average Overweight (x) 7 | . 8 8 6 Largest Inventory Capacity 25 | 8 25 25 25 Average Capacity 24 | 7 24 25 25 Most Carried 21 | 6 19 18 21 Average Carried 14 | 3 14 18 15 Final Capacity 25 | 8 25 25 25 Final Carried 18 | 6 18 18 14 Class Distribution -------------------- 79% | Mutant 20% | Scavenger-Skirmisher Dominant Class ---------------- Mutant | -10/Materials Mutant | -10/Mines Scavenger-Skirmisher | -9/Materials Resources | -11 -10 -10 -9 ----------- Run | Yrd Mat Min Mat Matter Collected 1193 | 294 499 . 400 Remotely . | . . . . Salvage Created 1070 | 101 341 . 628 Parts 79 | 7 22 . 50 Haulers Intercepted 5 | . 2 . 3 Recyclers Shooed 1 | . . . 1 Parts Field Recycled . | . . . . Retrieved Matter . | . . . . Parts Self-Destructed . | . . . . Prevented . | . . . . Kills | -11 -10 -10 -9 ------- Run | Yrd Mat Min Mat Combat Hostiles Destroyed 33 | . 12 . 21 Melee 3 | . . . 3 Guns 4 | . 3 . 1 Cannons 3 | . 1 . 2 AOE 19 | . 8 . 11 Classes Destroyed 11 | 2 5 . 4 Worker 3 | . 2 . 1 Builder 1 | . . . 1 Tunneler 3 | 2 . . 1 Hauler 5 | . 2 . 3 Recycler 1 | 1 . . . Mechanic 1 | . 1 . . Operator 4 | . . . 4 Watcher 2 | . . . 2 Swarmer 21 | . 9 . 12 Grunt 9 | . 3 . 6 Sentry 3 | . . . 3 Best Kill Streak 11 | 1 5 . 11 Combat Bots Only 7 | . 3 . 7 Max Kills in Single Turn 4 | 1 3 . 4 Gunslinging . | . . . . Exploded 3 | . 3 . 2 Melee 1 | . . . 1 Uniques/NPCs Destroyed . | . . . . Combat | -11 -10 -10 -9 -------- Run | Yrd Mat Min Mat Hostile Shots Fired 270 | . 72 . 198 Missed 82 | . 16 . 66 Hits 188 | . 56 . 132 Projectile 188 | . 56 . 132 Critical Strikes 1 | . . . 1 Damage Taken 2445 | . 626 . 1819 Core 559 | . 154 . 405 Absorbed by Shields . | . . . . Regen/Repaired (Parts) 22 | . 22 . . Core Remaining (%) 69 | 100 . 38 . Volleys Fired 82 | 14 42 . 26 Largest 3 | 1 2 . 3 Hottest 120 | 20 120 . 85 Shots Fired 142 | 14 73 . 55 Gun 104 | 14 56 . 34 Cannon 20 | . 11 . 9 Launcher 18 | . 6 . 12 Special . | . . . . Kinetic 60 | 14 18 . 28 Thermal 14 | . 11 . 3 Explosive 18 | . 6 . 12 Electromagnetic 50 | . 38 . 12 Robot Hit Streak 12 | 4 12 . 8 Robot Miss Streak 5 | 1 3 . 5 Penetration Max . | . . . . Secondary Targets . | . . . . Shots Hit Robots 99 | 10 43 . 46 Core Hits 83 | 7 29 . 47 Critical Kills 1 | . . . 1 Critical Parts Destroyed 4 | . 1 . 3 Critical Strikes 8 | . 3 . 5 Destroy 1 | . 1 . . Blast 1 | . . . 1 Corrupt 2 | . 2 . . Smash 4 | . . . 4 Melee Attacks 17 | . . . 17 Impact 17 | . . . 17 Slashing . | . . . . Piercing . | . . . . Sneak Attacks 1 | . . . 1 Combat Hostiles . | . . . . Follow-up Attacks . | . . . . Damage Inflicted 2798 | 82 1097 . 1619 Guns 722 | 82 411 . 229 Cannons 267 | . 140 . 127 Explosions 1305 | . 546 . 759 Melee 504 | . . . 504 Ramming . | . . . . Kinetic 376 | 82 88 . 206 Thermal 309 | . 266 . 43 Explosive 1154 | . 420 . 734 Electromagnetic 455 | . 323 . 132 Impact 504 | . . . 504 Slashing . | . . . . Piercing . | . . . . Highest Corruption 7 | . . . 7 Average Corruption 7 | . . . 7 Corruption Purged . | . . . . Corruption Blocked . | . . . . Effects 13 | . . . 13 Message Errors 3 | . . . 3 Matter Fused 5 | . . . 5 Energy Discharges 1 | . . . 1 Data Loss (minor) 3 | . . . 3 Misfires 1 | . . . 1 Overload Shots . | . . . . Overflow Damage 173 | . 41 . 132 Projectiles . | . . . . Explosions 48 | . 41 . 7 Melee 125 | . . . 125 Knockbacks 2 | . . . 2 Impact 2 | . . . 2 Kinetic . | . . . . Secondary . | . . . . Self-Inflicted Damage 193 | . 48 . 145 Shots 8 | . 3 . 5 Rammed . | . . . . Targets Rammed . | . . . . Kicked . | . . . . Crushed . | . . . . Highest Temperature 339 | . 339 . 87 Average Temperature 94 | . 120 . 23 Received Heat Transfer 735 | . 198 . 537 Effects 5 | . 5 . . Shutdowns 2 | . 2 . . Interference 2 | . 2 . . Matter Decay 1 | . 1 . . Siege Activations . | . . . . Martial Activations . | . . . . Shielding Activations . | . . . . Robots Disrupted . | . . . . Combat Hostiles . | . . . . Robots Corrupted 4 | . . . 4 Combat Hostiles 4 | . . . 4 Parts Fried 11 | . 3 . 8 Impact Corruptions 6 | . . . 6 Robots Melted . | . . . . Combat Hostiles . | . . . . Parts Melted . | . . . . Heat Transferred 483 | . 396 . 87 Parts Sabotaged . | . . . . Parts Stolen . | . . . . Parts Stripped . | . . . . Power Chain Reactions 3 | . 2 . 1 Alert | -11 -10 -10 -9 ------- Run | Yrd Mat Min Mat Maximum Alert Level 1 | . 1 . 1 Low Security (%) 66 | 100 76 100 46 Level 1 33 | . 23 . 53 Level 2 . | . . . . Level 3 . | . . . . Level 4 . | . . . . Level 5 . | . . . . High Security . | . . . . Max Security . | . . . . Peak Influence 299 | 5 277 94 299 Initial 94 | . 3 94 1 Average 105 | 2 85 49 149 Influence Increases 1235 | 15 472 . 748 Destroy 0b10 Robot/C 660 | . 240 . 420 Destroy 0b10 Robot/NC 95 | 15 25 . 55 Destroy Leader 174 | . 54 . 120 Successful Hack 41 | . 34 . 7 Select Force Hacks 30 | . 30 . . Disable Machine 45 | . 30 . 15 Destroy Structure 130 | . 44 . 86 Lose Combat Pursuer 60 | . 15 . 45 Influence Decreases 962 | 10 233 240 479 Entered New Map 155 | . 2 150 3 Time Decay 627 | 10 201 90 326 Lost Part 180 | . 30 . 150 Squads Dispatched 9 | . 3 . 6 Investigation 4 | . 1 . 3 Extermination . | . . . . Reinforcement 5 | . 2 . 3 Assault . | . . . . Garrison . | . . . . Intercept . | . . . . Searches Triggered . | . . . . Construction Impeded 1 | . . . 1 Haulers Reinforced . | . . . . Active Scanning Responses . | . . . . Cargo Convoy Interrupts . | . . . . Stealth | -11 -10 -10 -9 --------- Run | Yrd Mat Min Mat Distress Signals 9 | . 2 . 7 Communications Jammed . | . . . . Distress Signals . | . . . . Times Spotted 57 | . 22 . 35 Peak Tracking Total 9 | . 5 . 9 Tactical Retreats 4 | . 1 . 3 Traps | -11 -10 -10 -9 ------- Run | Yrd Mat Min Mat Traps Triggered 1 | . . . 1 Indirectly . | . . . . Trap Hack Attempts . | . . . . Triggered . | . . . . Disarmed . | . . . . Reprogrammed . | . . . . Reused . | . . . . Traps Extracted . | . . . . Installed . | . . . . Triggered . | . . . . Machines | -11 -10 -10 -9 ---------- Run | Yrd Mat Min Mat Machines Disabled 3 | . 2 . 1 Max in Single Turn 1 | . 1 . 1 Machines Repaired . | . . . . Machines Dismantled . | . . . . Machines Sabotaged . | . . . . Overloaded Fab Kills . | . . . . Hacking | -11 -10 -10 -9 --------- Run | Yrd Mat Min Mat Machines Accessed 11 | . 8 . 3 Terminals 9 | . 6 . 3 Fabricators . | . . . . Repair Stations 1 | . 1 . . Recycling Units 1 | . 1 . . Scanalyzers . | . . . . Garrison Access . | . . . . Total Hacks 33 | . 22 . 11 Successful 19 | . 14 . 5 Failed 14 | . 8 . 6 Catastrophic 2 | . 1 . 1 Database Lockouts . | . . . . Manual 30 | . 20 . 10 Terminals 30 | . 19 . 11 Fabricators . | . . . . Repair Stations 2 | . 2 . . Recycling Units 1 | . 1 . . Scanalyzers . | . . . . Garrison Access . | . . . . Terminal Hacks . | . . . . Fabricator Hacks . | . . . . Repair Station Hacks 2 | . 2 . . Scan Component 1 | . 1 . . Repair 1 | . 1 . . Recycling Unit Hacks . | . . . . Scanalyzer . | . . . . Garrison Access Hacks . | . . . . Unauthorized Hacks 17 | . 12 . 5 Terminals 16 | . 11 . 5 Assimilate 1 | . 1 . . Botnet 6 | . 3 . 3 Operators 1 | . 1 . . Skim 8 | . 6 . 2 Fabricators . | . . . . Repair Stations . | . . . . Recycling Units 1 | . 1 . . Tunnel 1 | . 1 . . Scanalyzers . | . . . . Garrison Access . | . . . . Data Cores Recovered 1 | . . . 1 Used . | . . . . Hacking Detections 9 | . 6 . 3 Full Trace Events 2 | . . . 2 Feedback Events . | . . . . Feedback Blocked . | . . . . Robot Schematics Acquired . | . . . . Robots Built . | . . . . Authchips . | . . . . Time . | . . . . Total Robot Build Rating . | . . . . Part Schematics Acquired . | . . . . Parts Built . | . . . . Authchips . | . . . . Time . | . . . . Total Part Build Rating . | . . . . Parts Repaired 1 | . 1 . . Time 26 | . 26 . . Parts Recycled . | . . . . Recycled Matter . | . . . . Retrieved Matter . | . . . . Retrieved Components . | . . . . Parts Scanalyzed . | . . . . Part Schematics Acquired . | . . . . Parts Damaged . | . . . . Bothacking | -11 -10 -10 -9 ------------ Run | Yrd Mat Min Mat Used RIF Installer . | . . . . Robots Hacked . | . . . . Non-combat . | . . . . Combat . | . . . . Robot Hacks Applied . | . . . . Relay Couplers Released . | . . . . Fabnet Peak Effective % . | . . . . Robots Rewired . | . . . . Allies Hacked . | . . . . Hacks Repelled . | . . . . Allies | -11 -10 -10 -9 -------- Run | Yrd Mat Min Mat Total Allies 1 | . 1 . . Largest Group 1 | . 1 1 1 Highest-Rated Group 10 | . 10 10 10 Highest-Rated Ally 10 | . 10 10 10 Total Orders . | . . . . Ally Attacks . | . . . . Total Damage . | . . . . Kills . | . . . . Allies Corrupted . | . . . . Allies Melted . | . . . . Intel | -11 -10 -10 -9 ------- Run | Yrd Mat Min Mat Active Infowar (turns) 3029 | 46 1603 198 1182 Structural 1180 | . 26 . 1154 Seismic 2911 | 46 1577 198 1090 Robot Analysis Total . | . . . . Derelict Logs Recovered . | . . . . Drone Launches . | . . . . Drone Recoveries . | . . . . Exploration | -11 -10 -10 -9 ------------- Run | Yrd Mat Min Mat Turns Passed 3135 | 114 1604 198 1219 Spaces Moved 1202 | 80 607 100 415 Core 5 | 1 1 . 3 Treads 127 | . . . 127 Legs . | . . . . Wheels 1070 | 79 606 100 285 Hover . | . . . . Flight . | . . . . Fastest Speed 50 | 50 95 200 200 Average Speed 212 | 90 205 200 248 Slowest Speed 1550 | 95 1450 200 1550 Overloaded Moves . | . . . . Propulsion Burnouts . | . . . . Robots Hopped . | . . . . Potential Cave-ins . | . . . . Cave-ins Triggered 1 | . . . 1 Exploration Rate (%) 41 | 5 83 31 45 Regions Visited 3 Branch Regions 1 Pre-discovered Areas 2 | . 2 . . Known Exits Taken 1 | . . 1 . Unknown Exits Taken 2 | 1 1 . . Scrap Searched . | . . . . Spaces Dug 5 | . . . 5 Terrain Destroyed 130 | . 50 . 80 Melee . | . . . . Projectile . | . . . . AOE 130 | . 50 . 80 Terrain Rammed . | . . . . Walls Destroyed . | . . . . Machines Disabled . | . . . . Actions | -11 -10 -10 -9 --------- Run | Yrd Mat Min Mat Total 1610 | 106 885 99 520 Wait 199 | . 181 . 18 Move 1199 | 79 606 99 415 Hop . | . . . . Pick Up 37 | 5 21 . 11 Fast Attach 7 | 7 . . . Attach 16 | . 4 . 12 Detach . | . . . . Swap 43 | 1 24 . 18 Drop 10 | . 7 . 3 Fire 82 | 14 42 . 26 Melee 17 | . . . 17 Ram . | . . . . Kick . | . . . . Crush . | . . . . Escape Stasis . | . . . . Rewire . | . . . . Trap . | . . . . Miscellaneous . | . . . . Route ------- -11/Scrapyard -10/Materials (discovered 5 exits: *Mat x3 / [*Min] / Sub) -10/Mines (discovered 3 exits: *Mat x2 / Sub) -9/Materials (discovered 1 exit: [*Min]) History --------- Turn | Location | Event 7 | -11/Scrapyard | Discovered new exit (range 16) 115 | -11/Scrapyard | Entered Materials 308 | -10/Materials | Build established: Mutant 381 | -10/Materials | Discovered new exit (range 14) 752 | -10/Materials | Repaired Wheel 1078 | -10/Materials | Core integrity fell below 50% 1296 | -10/Materials | Discovered new exit (range 11) 1443 | -10/Materials | Discovered new exit (range 16) 1485 | -10/Materials | Learned location of 1 exit from Recycling 1530 | -10/Materials | Learned location of 1 exit from Recycling 1563 | -10/Materials | Loaded intel: 25 non-interactive machine locations 1586 | -10/Materials | Learned location of 2 exits from Subcaves 1598 | -10/Materials | Learned 4 Recycling zone layouts 1601 | -10/Materials | Identified exit to Materials 1601 | -10/Materials | Identified exit to Subcaves 1602 | -10/Materials | Loaded intel: 1 repair station location 1617 | -10/Materials | Learned location of Mines (-10) 1639 | -10/Materials | Learned location of 2 exits from Mines 1719 | -10/Materials | Entered Mines 1719 | -10/Mines | Accompanied by 1 ally 1917 | -10/Mines | Entered Materials 1917 | -9/Materials | Accompanied by 1 ally 1917 | -9/Materials | Evolved 2 slots: Utility x1, Weapon x1 2253 | -9/Materials | Build established: Scavenger-Skirmisher 2382 | -9/Materials | Destroyed 7 combat bots 2708 | -9/Materials | Discovered new exit (range 9) 2713 | -9/Materials | Crushed by falling debris 2713 | -9/Materials | Core integrity fell below 50% 2744 | -9/Materials | Lost 6 parts (1n2u3w) 2873 | -9/Materials | Build established: Mutant 3040 | -9/Materials | Core integrity fell below 20% 3136 | -9/Materials | Destroyed by G-34 Mercenary with Small Laser Last Messages --------------- 03100_ System corrupted: Matter fused (-6). 03100_ K-01 Serf collects debris. 03100_ Lgt. Armor Plating destroyed. 03109_ Triggered Alarm Trap. 03109_ An alarm sounds. 03109_ ALERT: Alarm triggered, dispatching investigation squad. 03109_ Lgt. Cannon destroyed. 03114_ Lgt. Assault Rifle destroyed. 03114_ K-01 Serf collects debris. 03116_ System corrupted: Component data lost. 03118_ K-01 Serf collects debris. 03120_ Structural Scanner destroyed. 03126_ U-05 Engineer lays Concrete. 03128_ Y-45 Defender suffers critical hit (Smash). 03128_ Y-45 Defender destroyed. 03131_ Acquired 51 matter. 03134_ W-16 Scout sends out distress signal. 03135_ K-01 Serf collects debris. Map ----- +----------------------------------------------------+ | ##### ##### # ####### ??????????? | | #########+###############+### #########??????????? | | = =%% ?????????? | | ######## % [ ?????????? | | ######## ?????????? | | ??????## ######+####### ##+######?????????? | | ??????## # # ## #?????????? | | ??????##! !# "" #" # ???????????????? | | ??????###!!!!## """#"" # ???????????????? | | ??????######### """ R"# ! # ???????????????? | | ???????######## """ """#"" < # ???????????????? | | ?????????????## """ # ? # ???????????????? | | ?????????????## #"?? # ???????????????? | | ?????????????## #"????? # ???????????????? | | ?????????????#############?????## ???????????????? | | ????????????????##########?????## ???????????????? | | ???????????????????????????????????????????????? | | ##???????????????????????????????????????????????? | | ##???????????????????????????????????????????????? | | ##???????????????????????????????????????????????? | | ##?????????????????????????????#?????????????????? | | ##???????????????????????????? +?????????????????? | | ????????????????????????????? # ????????????????? | | ################## # # ????????????????? | | ############################k # ????????????????? | | @ # ????????????????? | | u !![ ##????????????????? | | = [ ##????????????????? | | ############+###############g ##????????????????? | | # T # ######### #????????????????? | | # ??????????????????????????? ???????????????? | | # ???????????????????????????? ?????????????? | | # ????????????????????????????? w ???????????? | | + ??????????????????????????????#######??????????? | | # ???????????????????????????????????????????????? | | # ???????????????????????????????????????????????? | | # ???????????????????????????????????????????????? | | ?????????????????????????????????????????????????? | | ?????????????????????????????????????????????????? | | ?????????????????????????????????????????????????? | | ?????????????????????????????????????????????????? | | ?????????????????????????????????????????????????? | | ?????????????????????????????????????????????????? | | ?????????????????????????????????????????????????? | | ?????????????????????????????????????????????????? | | ?????????????????????????????????????????????????? | | ?????????????????????????????????????????????????? | | ?????????????????????????????????????????????????? | | ?????????????????????????????????????????????????? | | ?????????????????????????????????????????????????? | +----------------------------------------------------+ Best States ------------- Heat Dissipation 28 Energy Generation 10 Energy Capacity 250 Matter Stores 300 Matter Capacity 300 Sight Range 16 Terrain Scan Density 10 Armor Coverage 300 Evasion (%) 44 Recoil Reduction 2 Item Schematics ----------------- None Robot Schematics ------------------ None Fabricated ------------ Nothing Repaired ---------- Wheel | 45% | -10/Materials Alien Tech Used ----------------- None Achievements -------------- None Challenges ------------ None Game ------ Seed UltimateMolecularExtractor Manual? 0 Play Time 00:25:21 Cumulative 123.4 hours Start 2025.08.21 @ 17:32:59 End 2025.08.21 @ 17:55:43 Sessions 1 Manual Loads 0 Difficulty Rogue Special Mode None Game No. 136 Rogue 136 Adventurer 0 Explorer 0 Win Type - Total 0 Types 0/0/0/0/0/0/0/0/0/0 Lore% 61 Gallery% 45 Achievement% 37 Wizard Run 0 Options --------- Layout 1 ASCII 0 Keyboard 0 Movement Mouse Keybinds 0 Fullscreen 2 Font 48/Smallcaps Map View 50x35 Zoom Use 0% Tactical HUD 1 Map Filters NONE Filters NONE Steam 0 RUN: bdfae125-9374-4afc-9053-6316df09dd53